[Event "2nd Late Dr Abul K C Chess-ch B 2022"]
[Site "Dhaka"]
[Date "2022.07.06"]
[Round "6.1"]
[White "Tutul, Dhar"]
[Black "Sajidul, Haque"]
[Result "1-0"]
[ECO "E01"]
[WhiteElo "1945"]
[BlackElo "1875"]
[Annotator "TA"]
[PlyCount "89"]
[EventDate "2022.07.03"]
[EventCountry "BAN"]
[SourceTitle "playchess.com"]
[Source "ChessBase"]
[SourceQuality "1"]
[TimeControl "5400+30"]

{[%evp 12,89,33,31,47,31,31,20,27,25,27,27,135,136,131,126,133,90,85,105,107,82,79,75,115,82,85,89,100,95,116,116,119,122,118,116,108,108,112,113,115,105,120,120,149,138,158,7,0,0,137,109,199,199,199,181,1847,1299,1536,1631,1641,1445,29973,29972,29974,29975,29974,29976,29975,29976,29978,29979,29979,29980,29980,29981,29981,29982,29982,29980]} 1. d4 {[%emt 0:00:03]} d5 {[%emt 0:00:04]} 2. c4 {[%emt 0:00:06]} e6 {[%emt 0:00:18]} 3. g3 {[%emt 0:00:07]} c6 {[%emt 0:00:35]} 4. Bg2 {[%emt 0:00:03]} Nf6 {[%emt 0:00:12]} 5. Nf3 {[%emt 0:00:04]} Bd6 {[%emt 0:00:29]} 6. O-O {[%emt 0:00:12]} Nbd7 {[%emt 0:00:17]} 7. Qc2 {[%emt 0:00:31]} b6 {[%emt 0:00:29] E01: Catalan: Early deviations.} 8. b3 {[%emt 0:01:08] Hoping for cxd5.} Bb7 {[%emt 0:01:00]} 9. Bb2 {[%emt 0:00:10]} Qc7 {[%emt 0:02:48] The position is equal.} 10. Nbd2 {[%emt 0:00:17]} O-O {[%emt 0:01:13]} 11. e4 {[%emt 0:01:57] [#]} (11. Rad1 {feels hotter.} Rad8 12. e4 dxe4 13. Nxe4 Nxe4 14. Qxe4 Rfe8 15. Qd3) 11... e5 $146 {[%emt 0:08:54]} (11... dxe4 $11 {remains equal.} 12. Nxe4 Nxe4 13. Qxe4 h6) ({Predecessor:} 11... dxe4 12. Nxe4 Nxe4 13. Qxe4 Rae8 14. Rad1 e5 15. dxe5 Nxe5 16. Nxe5 Bxe5 17. Rfe1 f6 {1-0 (33) Gaehwiler,G (2414)-Duratti,L (2211) Switzerland 2019}) 12. cxd5 $16 {[%emt 0:01:15]} cxd5 {[%emt 0:00:25]} 13. Qxc7 {[%emt 0:02:03]} Bxc7 {[%emt 0:00:01]} 14. Nxe5 {[%emt 0:05:47]} Bxe5 {[%emt 0:02:20]} 15. dxe5 {[%emt 0:08:29]} Nxe4 {[%emt 0:00:12]} 16. Nxe4 {[%emt 0:00:14]} dxe4 {[%emt 0:00:09]} 17. Rfe1 {[%emt 0:01:31]} Rac8 {[%emt 0:15:26]} 18. Bxe4 {[%emt 0:08:24]} Bxe4 {[%emt 0:00:10]} 19. Rxe4 {[%emt 0:00:03]} Rc2 {[%emt 0:00:28] Prevents Re2.} 20. Ba3 {[%emt 0:01:11]} Rfc8 {[%emt 0:08:03]} 21. Rd1 $1 {[%emt 0:21:00]} Nf8 {[%emt 0:10:24]} 22. Bxf8 {[%emt 0:00:47] White is more active.} Kxf8 {[%emt 0:00:33][%mdl 4096] Endgame KRR-KRR} 23. Rd7 {[%emt 0:00:08]} R8c7 {[%emt 0:00:30]} 24. Rxc7 {[%emt 0:01:38]} Rxc7 {[%emt 0:00:02] KR-KR} 25. Rc4 {[%emt 0:03:09] Inhibits Rc2.} Rd7 {[%emt 0:00:52]} 26. Kf1 {[%emt 0:00:46]} Ke7 {[%emt 0:01:30]} 27. Ke2 {[%emt 0:00:20]} Ke6 {[%emt 0:01:51]} 28. f4 {[%emt 0:00:08][%cal Bf2f4,Bf4f5][%mdl 32]} f6 {[%emt 0:00:59]} 29. Rc6+ $2 {[%emt 0:01:49]} ({White should play} 29. exf6 $16 Kxf6 30. Ke3) 29... Kd5 $11 {[%emt 0:00:36]} 30. Rc3 {[%emt 0:03:04] aiming for Rd3+.} Re7 {[%emt 0:14:18]} (30... fxe5 $11 31. Rd3+ Kc6) 31. Rd3+ {[%emt 0:00:41]} Kc6 {[%emt 0:00:19] [#]} (31... Ke6 $16) 32. Ke3 $1 $18 {[%emt 0:00:10]} fxe5 {[%emt 0:00:27] [#]} 33. f5 {[%emt 0:00:10]} Rd7 $2 {[%emt 0:04:45]} (33... a5 34. Ke4 Rf7) 34. Rxd7 {[%emt 0:00:23]} Kxd7 {[%emt 0:00:01] KP-KP} 35. Ke4 {[%emt 0:00:18]} Kd6 {[%emt 0:00:02]} 36. b4 {[%emt 0:02:00]} b5 {[%emt 0:03:18]} 37. g4 {[%emt 0:00:20] White mates.} g5 {[%emt 0:16:54]} 38. fxg6 {[%emt 0:00:23]} hxg6 {[%emt 0:00:21]} 39. h4 {[%emt 0:00:10]} Ke6 {[%emt 0:02:17]} 40. a3 {[%emt 0:04:45]} a6 {[%emt 0:01:46]} 41. h5 {[%emt 0:00:45]} gxh5 {[%emt 0:05:42]} 42. gxh5 {[%emt 0:00:01]} Kf6 {[%emt 0:00:00]} 43. h6 {[%emt 0:00:07]} Kg6 {[%emt 0:00:00]} 44. Kxe5 {[%emt 0:00:02]} Kxh6 {[%emt 0:00:00]} 45. Ke4 {[%emt 0:36:21] Weighted Error Value: White=0.12 (very precise) /Black=0.49} 1-0

[Event "2nd Late Dr Abul K C Chess-ch B 2022"]
[Site "Dhaka"]
[Date "2022.07.06"]
[Round "6.2"]
[White "Abdullah Al, Raison"]
[Black "Md, Azmaeen Parvez Sayor"]
[Result "0-1"]
[ECO "C24"]
[WhiteElo "1888"]
[BlackElo "1924"]
[Annotator "TA"]
[PlyCount "54"]
[EventDate "2022.07.03"]
[EventCountry "BAN"]
[SourceTitle "playchess.com"]
[Source "ChessBase"]
[SourceQuality "1"]
[TimeControl "5400+30"]

{[%evp 9,54,3,24,26,27,0,18,0,9,6,16,15,18,13,16,-7,16,0,0,0,0,0,0,0,0,0,9,-76,-60,-57,-56,-58,-68,-67,-75,-153,-7,-73,-24,-301,-315,-296,-122,-785,528,-22,1374]} 1. e4 {[%emt 0:00:37]} e5 {[%emt 0:00:27]} 2. Bc4 {[%emt 0:00:16]} Nf6 {[%emt 0:00:06]} 3. d3 {[%emt 0:00:01]} c6 {[%emt 0:00:13]} 4. Nf3 {[%emt 0:00:06]} d5 {[%emt 0:00:07]} 5. Bb3 {[%emt 0:00:06]} a5 {[%emt 0:00:09] Threatens to win with ...a4.} 6. a4 {[%emt 0:00:31] C24: Bishop's Opening: 2...Nf6.} ({Don't go for} 6. Nxe5 $2 a4 7. Bxd5 cxd5 8. exd5 Nxd5 $19) 6... Bb4+ {[%emt 0:00:18]} 7. Bd2 {[%emt 0:07:51]} (7. c3 Bd6 8. exd5) (7. c3 $5 {[%cal Rc3b4]} Bd6 8. exd5 $11) 7... Bxd2+ {[%emt 0:00:13]} (7... dxe4 8. dxe4 O-O) 8. Nbxd2 {[%emt 0:00:12]} Nbd7 {[%emt 0:00:16]} 9. O-O {[%emt 0:01:29]} O-O {[%emt 0:01:13]} 10. Re1 {[%emt 0:02:46]} Re8 {[%emt 0:00:56][%cal Bf8e8,Be8e7,Be7d7][%mdl 32]} 11. h3 {[%emt 0:05:50]} h6 {[%emt 0:00:41] [#]} 12. c3 $146 {[%emt 0:12:31]} ({Predecessor:} 12. d4 exd4 13. exd5 Rxe1+ 14. Qxe1 cxd5 15. Nxd4 Nc5 16. Qe5 Be6 17. Nb5 Rc8 18. Re1 {½-½ (31) Tesic,Z (2376)-Ivanov,A (2498) ICCF email 2012}) 12... Re7 {[%emt 0:21:06]} 13. Nh4 {[%emt 0:07:22]} Nc5 {[%emt 0:01:48]} 14. Bc2 {[%emt 0:00:02]} dxe4 {[%emt 0:00:35]} 15. dxe4 {[%emt 0:03:53]} Be6 {[%emt 0:03:46]} 16. Qe2 {[%emt 0:01:53]} Rd7 {[%emt 0:01:39]} 17. Nhf3 {[%emt 0:04:47]} Nh5 {[%emt 0:05:47] ...Nd3 is the strong threat.} 18. Red1 {[%emt 0:08:31]} (18. g3) (18. g3 $1 $11) 18... Nf4 $36 {[%emt 0:01:54][%mdl 2048] Black has some pressure.} 19. Qe3 {[%emt 0:00:01]} Ncd3 {[%emt 0:01:23]} 20. Rab1 {[%emt 0:04:14]} Qf6 {[%emt 0:03:01][%cal Oe6h3] Strongly threatening ...Bxh3!} 21. Nf1 $1 {[%emt 0:01:06][%cal Rc2d3]} Rad8 {[%emt 0:03:23][%cal Oe6h3] Hoping for ...Bxh3! Black is much more active.} 22. Ng3 {[%emt 0:00:02] [#]} (22. Kh2) (22. Kh2 $142) 22... g5 {[%emt 0:12:45]} (22... Bxh3 23. gxh3 Nxh3+ 24. Kg2 Nhxf2 25. Bxd3 Nxd3) (22... Bxh3 $1 $17 {[%mdl 512]} 23. gxh3 Nxh3+ 24. Kg2 Nhxf2 25. Bxd3 Nxd3) 23. Rd2 {[%emt 0:05:47]} (23. Nh5 Qg6 24. Ng3) (23. Nh5 $11 {keeps the balance.} Qg6 24. Ng3) 23... b6 {[%emt 0:04:47]} (23... g4 24. hxg4 Bxg4) (23... g4 $17 24. hxg4 Bxg4) 24. Rbd1 $2 {[%emt 0:01:30][%mdl 8192]} (24. Nh5 $11 {and White has nothing to worry.} Nxh5 25. Rxd3) 24... Nxb2 $19 {[%emt 0:01:32]} 25. Rxd7 {[%emt 0:00:11]} Rxd7 {[%emt 0:00:23]} (25... Bxd7 $19 26. Rb1 Nc4) 26. Rd2 {[%emt 0:31:55][%mdl 8192]} (26. Rxd7 $17 Nc4 27. Qe1 (27. Nh5 Nxh5 28. Qd3 Nf4 $17) 27... Bxd7 28. Nd2) 26... Rd4 $4 {[%mdl 8192]} 27. Rxd4 $2 {[%emt 0:00:00]} ({White has to play} 27. cxd4 $18 Nc4 28. dxe5) 27... Bd7 $2 {[%emt 0:00:41][%mdl 40960] Weighted Error Value: White=0.85/Black=0.56. Loss on time!?} (27... exd4 28. Nxd4 Nc4) (27... exd4 $11 28. Nxd4 Nc4) 0-1

[Event "2nd Late Dr Abul K C Chess-ch B 2022"]
[Site "Dhaka"]
[Date "2022.07.06"]
[Round "6.3"]
[White "shafiqul, Islam"]
[Black "Anindya Singha, Argho"]
[Result "1/2-1/2"]
[ECO "A00"]
[WhiteElo "1907"]
[BlackElo "1812"]
[Annotator "TA"]
[PlyCount "115"]
[EventDate "2022.07.03"]
[EventCountry "BAN"]
[SourceTitle "playchess.com"]
[Source "ChessBase"]
[SourceQuality "1"]
[TimeControl "5400+30"]

{[%evp 9,115,-9,-6,-9,-9,-11,-12,-24,-19,-29,-22,-25,-16,-21,-3,0,-3,0,0,-141,-148,-349,-343,-333,-349,-297,-34,-26,-39,-26,-27,-77,-53,-48,-66,-55,-54,-65,-13,-10,0,0,0,0,0,0,0,-17,0,0,0,0,11,0,0,0,3,0,13,11,16,14,14,0,0,0,15,0,105,2,89,-108,-90,-105,-122,-501,-500,-491,-477,-441,-402,-553,-288,-333,-15,-15,-15,-15,-8,-8,-8,-8,-8,-8,-8,-8,-8,-8,-8,-8,-8,-8,-8,-8,-8,-11,-11,-18]} 1. b4 {[%emt 0:00:19]} d5 {[%emt 0:02:02]} 2. Nf3 {[%emt 0:00:11]} Bf5 {[%emt 0:02:29]} 3. e3 {[%emt 0:04:18]} e6 {[%emt 0:00:20]} 4. Bb2 {[%emt 0:00:17]} Nf6 {[%emt 0:00:24]} 5. c4 {[%emt 0:02:29]} c6 {[%emt 0:01:25]} 6. a3 {[%emt 0:00:18] A00: Irregular Openings.} Be7 {[%emt 0:00:14]} 7. Nc3 {[%emt 0:02:38]} O-O {[%emt 0:00:44]} 8. d4 {[%emt 0:00:22]} Nbd7 {[%emt 0:07:02]} 9. c5 {[%emt 0:03:28]} Qc7 {[%emt 0:04:45]} 10. Bd3 {[%emt 0:00:11]} Bxd3 {[%emt 0:01:52]} (10... b6 {with more complications.} 11. O-O Bxd3 12. Qxd3 bxc5 13. bxc5 e5) 11. Qxd3 {[%emt 0:00:09]} e5 {[%emt 0:01:38]} 12. dxe5 {[%emt 0:00:12]} Nxe5 {[%emt 0:00:12]} 13. Nxe5 {[%emt 0:00:16]} Qxe5 {[%emt 0:00:12] [#]} 14. O-O $146 {[%emt 0:00:47]} (14. Rb1) (14. Rb1 $11) ({Predecessor:} 14. h3 Qg5 15. O-O Nd7 16. Ne2 a6 17. Ng3 Bf6 18. Bxf6 Nxf6 19. Qf5 Qxf5 20. Nxf5 {½-½ (50) Gottert,H-Korbela,L (2250) Sala 1994}) 14... Ng4 $17 {[%emt 1:14:11][%csl Gg4][%cal Re5h2]} 15. g3 $2 {[%emt 0:02:44]} (15. f4 Qxe3+ 16. Qxe3 Nxe3 17. Rfe1) (15. f4 $17 Qxe3+ 16. Qxe3 Nxe3 17. Rfe1) 15... Qh5 $1 $19 {[%emt 0:00:00][%csl Gg4][%cal Rh5h2]} 16. h4 {[%emt 0:00:49] [#]} Bxh4 $1 {[%emt 0:00:00][%mdl 512]} 17. Kg2 {[%emt 0:04:45] [#]} (17. Qe2 Bg5) 17... Ne5 $2 {[%emt 0:01:30]} (17... Bf6 18. Rh1 Qg6 19. Rad1) (17... Bxg3 18. Kxg3 (18. Rh1 Nxf2) 18... Ne5) ({Stronger than} 17... Bf6 18. Rh1 Qg6 19. Rad1 $19) (17... Bxg3 $1 $19 {[%mdl 512]} 18. Kxg3 f5) 18. Qe2 $15 {[%emt 0:04:05]} Qxe2 {[%emt 0:00:00]} (18... Qg6 {keeps more tension.} 19. Nxd5 Qe4+ 20. Kh3 Qxd5 21. Bxe5 Qxe5 22. gxh4 Qc3) 19. Nxe2 {[%emt 0:00:14]} Bf6 {[%emt 0:00:00]} 20. Rfd1 {[%emt 0:05:40]} (20. b5 $11 {keeps the balance.}) 20... Rfe8 {[%emt 0:00:00]} 21. a4 {[%emt 0:04:20]} Nd7 {[%emt 0:00:00]} 22. Bd4 {[%emt 0:01:58]} a5 {[%emt 0:00:00]} 23. b5 {[%emt 0:04:18]} Bxd4 {[%emt 0:00:00]} (23... Rac8 $15) 24. Nxd4 $11 {[%emt 0:00:59]} cxb5 {[%emt 0:00:00]} 25. Nxb5 {[%emt 0:02:10] Hoping for Nc7.} Rec8 {[%emt 0:00:00] Prevents Nc7.} (25... Nxc5 $2 26. Nc7 $18) 26. Nd6 {[%emt 0:05:17]} Rxc5 {[%emt 0:00:00]} 27. Nxb7 {[%emt 0:00:25]} Rc7 {[%emt 0:00:00]} 28. Nd6 {[%emt 0:01:19]} Nf6 {[%emt 0:00:00]} 29. Rac1 {[%emt 0:02:55] Against Rc2} Rd7 {[%emt 0:00:00]} 30. Rc6 {[%emt 0:03:01]} h6 {[%emt 0:00:00]} 31. f3 {[%emt 0:02:44][%mdl 1024] White has compensation.} Rb8 {[%emt 0:01:05]} 32. Nb5 {[%emt 0:00:13]} Re8 {[%emt 0:00:15]} 33. Kf2 {[%emt 0:00:31]} Re6 {[%emt 0:00:56]} 34. Rc8+ {[%emt 0:01:08]} Kh7 {[%emt 0:00:32]} 35. Ra8 {[%emt 0:00:59]} Rc6 {[%emt 0:01:00]} 36. Nd4 {[%emt 0:01:08] Against Rc2+} Rc5 {[%emt 0:00:53]} 37. Rb1 {[%emt 0:00:23]} Re7 {[%emt 0:01:20]} 38. Rb2 {[%emt 0:02:03]} g5 {[%emt 0:02:11]} (38... h5 $11) 39. Rbb8 {[%emt 0:01:33] White is more active.} (39. Rb6 $16 Ne8 40. Rxh6+ $1 Kxh6 41. Nf5+ Kh7 42. Nxe7) 39... g4 {[%emt 0:01:16]} (39... Rec7 $11 {remains equal.}) 40. Nf5 $2 {[%emt 0:03:05]} (40. Rb6 $16 {keeps the pressure on.} Re8 41. Raa6) 40... Rc2+ {[%emt 0:00:32]} 41. Ke1 {[%emt 0:00:45]} Re5 {[%emt 0:01:07]} 42. Kd1 $2 {[%emt 0:02:18][%mdl 8192] [#]} (42. Nh4 $17 {is more resistant.}) 42... Rxf5 $1 $19 {[%emt 0:00:46]} 43. Kxc2 {[%emt 0:00:38] Threatens to win with fxg4.} gxf3 {[%emt 0:00:02][%mdl 4096] Endgame KRR-KRN} 44. Rb1 {[%emt 0:00:43]} f2 {[%emt 0:00:15]} 45. Rf1 {[%emt 0:00:35]} Ng4 {[%emt 0:01:50]} 46. Kd2 {[%emt 0:00:48] [#]} Nh2 $2 {[%emt 0:00:00]} ({Black should try} 46... Re5 $1 $19 {...Kg7 is the strong threat.} 47. Rc8 (47. Rxa5 $2 Nxe3 48. Rxf2 Nc4+ 49. Kc3 Nxa5 $19) 47... Re4) 47. Ke2 $11 {[%emt 0:00:08] The position is equal.} Nxf1 {[%emt 0:00:00]} 48. Kxf1 {[%emt 0:00:09] KR-KR} d4 {[%emt 0:00:44]} 49. exd4 {[%emt 0:00:04]} h5 {[%emt 0:00:27]} 50. Rb8 {[%emt 0:01:30]} Kg6 {[%emt 0:00:31]} 51. Rb5 {[%emt 0:01:12]} Rxb5 {[%emt 0:00:18]} 52. axb5 {[%emt 0:00:01] KP-KP} a4 {[%emt 0:00:05]} 53. b6 {[%emt 0:00:46] Intending b7 and mate.} a3 {[%emt 0:00:08] ( -> ...a2)} 54. b7 {[%emt 0:00:09]} a2 {[%emt 0:00:01]} 55. b8=Q {[%emt 0:00:16] White threatens Qa7 and mate.} a1=Q+ {[%emt 0:02:46]} 56. Kxf2 {[%emt 0:00:02]} Qxd4+ {[%emt 0:00:00]} 57. Kf3 {[%emt 0:01:40]} Qd5+ {[%emt 0:00:00]} 58. Kf2 {[%emt 0:02:52] Whites escaped into a draw.  Weighted Error Value: White=0.44/Black=0.28 (precise)} 1/2-1/2

[Event "2nd Late Dr Abul K C Chess-ch B 2022"]
[Site "Dhaka"]
[Date "2022.07.06"]
[Round "6.4"]
[White "Hasan, Sk. Rashedul"]
[Black "Dewan, Riad"]
[Result "0-1"]
[ECO "B10"]
[WhiteElo "1856"]
[BlackElo "1970"]
[Annotator "TA"]
[PlyCount "91"]
[EventDate "2022.07.03"]
[EventCountry "BAN"]
[SourceTitle "playchess.com"]
[Source "ChessBase"]
[SourceQuality "1"]
[TimeControl "5400+30"]

{[%evp 9,91,9,47,39,46,27,36,23,54,19,39,11,14,18,25,28,66,69,79,72,105,101,112,105,106,118,134,111,120,108,88,82,73,70,79,55,70,66,66,62,78,47,56,-32,-18,-14,52,57,50,58,388,-118,-123,-385,-383,-522,-329,-307,0,0,0,0,0,-183,-168,-185,0,0,0,-116,0,0,28,0,-3,0,0,-8,0,0,94,-376,-349,-689]} 1. e4 {[%emt 0:27:13]} c6 {[%emt 0:00:08]} 2. d3 {[%emt 0:03:28]} d5 {[%emt 0:00:26]} 3. Nd2 {[%emt 0:00:03]} g6 {[%emt 0:01:49]} 4. Ngf3 {[%emt 0:00:43]} Bg7 {[%emt 0:00:12]} 5. Be2 {[%emt 0:00:30]} Bg4 {[%emt 0:01:24]} 6. O-O {[%emt 0:00:34] B10: Caro-Kann: 2 d3 and 2 c4.} Nd7 {[%emt 1:29:31]} 7. h3 {[%emt 0:01:16]} Bxf3 {[%emt 0:00:00]} 8. Nxf3 {[%emt 0:00:50] White is slightly better.} Qc7 {[%emt 0:00:00]} 9. c3 {[%emt 0:00:18]} Ngf6 {[%emt 0:00:00]} 10. Qc2 {[%emt 0:01:56]} O-O {[%emt 0:00:00]} 11. Re1 {[%emt 0:00:05] [#]} Rad8 $146 {[%emt 0:00:00]} ({Predecessor:} 11... Rfe8 12. Bf1 e5 13. Bd2 a5 14. a4 Bf8 15. b4 axb4 16. cxb4 Qd6 17. a5 h6 {1-0 (37) Tringov,G (2435)-Lechtynsky,J (2470) Kragujevac 1984}) 12. Bf1 {[%emt 0:00:09]} dxe4 {[%emt 0:00:00]} 13. dxe4 {[%emt 0:00:02]} e5 {[%emt 0:00:00]} 14. Be3 {[%emt 0:00:23]} h6 {[%emt 0:00:00]} 15. a4 {[%emt 0:00:17]} (15. Bxa7 c5 16. Qb3 g5 $19) 15... Nh5 {[%emt 0:00:00]} 16. a5 {[%emt 0:02:37]} (16. Bxa7 b6 17. Bxb6 (17. g4 Nf4) 17... Nxb6) (16. Bxa7 b6 17. Bxb6 (17. g4 $2 Nf4 $17) 17... Nxb6 $15) 16... c5 {[%emt 0:00:00]} 17. Bc4 {[%emt 0:01:30]} Nf4 {[%emt 0:00:00]} 18. Kh2 {[%emt 0:00:45]} Rfe8 {[%emt 0:00:00]} 19. g3 {[%emt 0:01:04]} Ne6 {[%emt 0:00:00]} 20. a6 {[%emt 0:04:01]} b6 {[%emt 0:00:00]} 21. Bb5 {[%emt 0:00:07]} Rf8 {[%emt 0:00:00]} 22. Nh4 {[%emt 0:01:38]} Nb8 {[%emt 0:00:00]} 23. Qb3 {[%emt 0:00:37][%cal Oh4g6]} Kh7 {[%emt 0:00:00]} 24. Bc4 {[%emt 0:04:06]} Rfe8 {[%emt 0:00:00]} 25. Bd5 {[%emt 0:01:17]} (25. Nf3) 25... Rd6 {[%emt 0:00:00]} 26. f4 {[%emt 0:04:22]} (26. Nf3) (26. Nf3 $14) 26... exf4 $15 {[%emt 0:00:00]} 27. gxf4 {[%emt 0:00:14]} Rxd5 {[%emt 0:00:00]} 28. Qxd5 $14 {[%emt 0:09:40]} (28. exd5 Nxf4 29. Qc4 (29. d6 Qxd6 30. Ng2 Nd3+ 31. Kg1 Nxe1) 29... Rxe3 30. Rxe3 Nxd5+ 31. Rg3 Be5) (28. exd5 Nxf4 29. Qc4 (29. d6 $2 Qxd6 30. Kh1 Qc6+ 31. Kh2 c4 $19) 29... Rxe3 $1 30. Rxe3 Nxd5+ 31. Rg3 Be5 $15) 28... Nxf4 {[%emt 0:00:00]} 29. Qb7 {[%emt 0:00:06]} Qd6 {[%emt 0:00:00][%mdl 8192]} (29... Be5) (29... Be5 $14) 30. Rad1 $2 {[%emt 0:12:54]} (30. Qxf7 Nd3+ 31. Kh1 Re7 $15) (30. e5 $1 $18 {[%cal Re5d6]} Qxe5 31. Nf3 (31. Qxf7 Nd3+ 32. Bf4 Qxf4+ $18)) 30... Nd3+ $17 {[%emt 0:00:00][%mdl 64] Discovered Attack, Double Attack. Pair of Knights!} 31. Kh1 $2 {[%emt 0:10:08][%mdl 8192]} (31. Kg1 $17 Re7 32. Rxd3 Qg3+ 33. Ng2 Rxb7 34. axb7) 31... Qg3 $1 $19 {[%emt 0:00:00]} 32. Re2 {[%emt 0:00:29]} Qxh4 {[%emt 0:00:00]} 33. Rxd3 {[%emt 0:00:19] [#] aiming for Bg1.} Qxh3+ $2 {[%emt 0:00:00]} (33... Re7 $1 $19 {[%cal Re7b7]} 34. Bg5 (34. Bf2 $2 Qh5 $19) 34... Qh5 35. Bxe7 Qxe2) 34. Kg1 $11 {[%emt 0:00:15]} Qg3+ {[%emt 0:00:00]} (34... c4 35. Rdd2 $17) 35. Kf1 $1 {[%emt 0:01:17]} c4 {[%emt 0:00:00]} 36. Rd1 {[%emt 0:01:59]} (36. Rdd2 $11 {and White is okay.}) 36... Qf3+ $19 {[%emt 0:00:00]} 37. Bf2 {[%emt 0:01:59]} Qh1+ $2 {[%emt 0:00:00]} (37... Be5 $1 $19 {White must now prevent ...Re6.} 38. Rd5 Bg3) 38. Bg1 $11 {[%emt 0:00:08]} Qf3+ {[%emt 0:01:26]} 39. Ke1 {[%emt 0:00:15]} (39. Bf2 $1 $11 {was the only way to keep the balance.}) 39... Qh1 {[%emt 0:01:36]} ({Black should try} 39... Be5 $1 $17 {[%cal Re5g3]} 40. Rdd2 Nxa6 $1 {[%mdl 512]}) 40. Kd2 {[%emt 0:01:05] Hoping for Bd4.} Qf3 {[%emt 0:02:18]} (40... Rd8+ 41. Bd4 Qf3) 41. Rde1 {[%emt 0:04:17] Threatens to win with Kc1.} (41. Qd5 Be5 42. Qxc4) (41. Qd5 $5 {[%cal Re2f2]} Be5 42. Qxc4 $11) 41... Qd3+ {[%emt 0:00:38]} 42. Kc1 {[%emt 0:00:02] Strongly threatening Bd4.} Rd8 {[%emt 0:03:01] Inhibits Bd4.} (42... Qd7 43. e5 $14 (43. Bh2 Be5 $11)) 43. Qxa7 {[%emt 0:04:14] [#]} Bxc3 $1 {[%emt 0:02:01]} 44. Qxf7+ {[%emt 0:00:47]} Bg7 {[%emt 0:00:04]} (44... Kh8 45. Be3 (45. bxc3 Qxc3+ 46. Kb1 Qb4+ 47. Ka2 Qa4+ 48. Kb2 Qb4+ 49. Kc2 Qb3+ 50. Kc1 Qc3+ 51. Kb1 Qb4+ 52. Kc2 Qb3+ 53. Kc1 Qc3+) 45... Nxa6 46. Qxg6 (46. bxc3 Qxc3+ 47. Kb1 Qb4+ 48. Kc2 Qb3+ 49. Kc1 Qc3+ 50. Kb1 Qb4+ 51. Kc2 Qb3+ 52. Kc1 Qc3+) (46. Rh2 Bxb2+ 47. Kxb2 Qb3+ 48. Kc1 Qc3+ 49. Kb1 Qb3+ 50. Rb2 Qd3+ 51. Ka1 Qa3+ 52. Kb1 Qd3+ 53. Rc2 Qb3+ 54. Kc1 Qa3+ 55. Kb1 Qb4+ 56. Ka2 Qa5+ 57. Kb2 Qb4+ 58. Ka2 Qb3+ 59. Ka1 Qa3+ 60. Kb1 Qb4+ 61. Ka2) 46... Bxb2+ 47. Kxb2 Qb3+ 48. Kc1 Qc3+ 49. Kb1 Qb3+ 50. Rb2 Qd3+ 51. Rc2 (51. Ka2 Nb4+ 52. Rxb4 Qc2+ 53. Ka3 Rd3+) 51... Qb3+ 52. Kc1 Qa3+ 53. Rb2 Qc3+ 54. Kb1 Qd3+ 55. Ka1 Qa3+ 56. Ra2 Qc3+ 57. Kb1 Qd3+ 58. Kb2 Qb3+ 59. Kc1 Qc3+ 60. Kb1 Qd3+ 61. Rc2 Qb3+ 62. Kc1 Qa3+ 63. Rb2 Qc3+ 64. Kb1 Qd3+) (44... Kh8 $11 45. Be3 (45. bxc3 Qxc3+ 46. Kb1 Qb4+ 47. Kc2 Qb3+ 48. Kc1 Qc3+ 49. Kb1 Qb4+ 50. Kc2 Qb3+ 51. Kc1 Qc3+ $11) 45... Nxa6 46. Qxg6 (46. bxc3 Qxc3+ 47. Kb1 Qb4+ 48. Kc2 Qb3+ 49. Kc1 Qc3+ 50. Kb1 Qb4+ 51. Kc2 Qb3+ 52. Kc1 Qc3+ $11) (46. Rh2 Bxb2+ 47. Kxb2 Qb3+ 48. Kc1 Qc3+ 49. Kb1 Qb4+ 50. Kc2 Qb3+ 51. Kc1 Qc3+ 52. Kb1 Qb4+ 53. Kc2 Qb3+ 54. Kc1 $11) 46... Bxb2+ 47. Kxb2 Qb3+ 48. Kc1 Qc3+ 49. Kb1 Qb3+ 50. Rb2 Qd3+ 51. Rc2 (51. Ka2 Nb4+ 52. Rxb4 Qc2+ 53. Ka3 Rd3+) 51... Qb3+ 52. Kc1 (52. Rb2 Qd3+ 53. Ka1 Qa3+ 54. Ra2 Qc3+ 55. Kb1 Qd3+ 56. Kb2 Qb3+ 57. Kc1 Qc3+ 58. Kb1 Qd3+ 59. Kb2 Qb3+ 60. Kc1 Qc3+ 61. Kb1 $11) 52... Qa3+ 53. Rb2 (53. Kb1 Qb3+ 54. Ka1 Qa3+ 55. Ra2 Qc3+ 56. Kb1 Qd3+ 57. Kb2 Qb3+ 58. Kc1 Qc3+ 59. Kb1 Qd3+ 60. Rc2 Qb3+ $11) 53... Qc3+ 54. Kb1 Qd3+ 55. Rc2 (55. Ka2 Nb4+ 56. Rxb4 Qc2+ 57. Ka3 Rd3+) 55... Qb3+ 56. Kc1 (56. Rb2 Qd3+ $11) 56... Qa3+ 57. Rb2 (57. Kb1 Qb3+ $11) 57... Qc3+ 58. Kb1 Qd3+) 45. a7 $2 {[%emt 0:01:46][%mdl 8192]} ({Much worse is} 45. Bxb6 $6 Rd7 46. a7 Rxf7 $11) (45. Rg2 $1 $16 {and life is bright.} Kh8 46. Qf1 (46. Qxg6 Bxb2+ 47. Kxb2 Qb3+ 48. Ka1 Qc3+ 49. Ka2 Qb3+ 50. Ka1 Qc3+ 51. Ka2 Qb3+ 52. Ka1 $11) (46. Bxb6 c3 $18) 46... Nxa6 47. Qxd3 (47. Bxb6 Nb4 $17) 47... cxd3 48. Bxb6 Rc8+ 49. Kb1) 45... Nc6 $19 {[%emt 0:08:26] ( -> ...Na5). Really sharp!} 46. Rc2 $2 {[%emt 0:00:36] Black used his chance.  Weighted Error Value: White=0.69/Black=0.49} (46. Bxb6 {[#] leads to mate.} Nb4 $1) (46. Rg2 Ne5 47. Qc7 (47. Qb7 $2 c3 $19)) 0-1